fUSD/lending_fUSD_20241216
["ID","MTS","AMOUNT","RATE_DAILY","PERIOD"]
[345572286,1734359447200,-500.0,0.00024999,3]
[345572287,1734359447208,-540.37,0.00024999,3]
[345572288,1734359447217,-500.0,0.00024999,3]
[345572289,1734359447226,-500.0,0.00024999,3]
[345572290,1734359447235,-500.0,0.00024999,3]
[345572291,1734359447244,-500.0,0.00024999,3]
[345572292,1734359447254,-483.53,0.00024999,3]
[345572293,1734359447263,-500.0,0.00024999,3]
[345572294,1734359447272,-500.0,0.00024999,3]
[345572295,1734359447281,-500.0,0.00024999,3]
[345572296,1734359447291,-371.7,0.00024999,3]
[345572297,1734359447300,-500.0,0.00024999,3]
[345572298,1734359447309,-500.0,0.00024999,3]
[345572299,1734359447318,-500.0,0.00024999,3]
[345572300,1734359447328,-171.85,0.00024999,3]
[345572301,1734359447337,-500.0,0.00024999,3]
[345572302,1734359447346,-500.0,0.00024999,3]
[345572303,1734359447355,-167.43,0.00024999,3]
[345572304,1734359447365,-500.0,0.00024999,3]
[345572305,1734359447374,-500.0,0.00024999,3]
[345572306,1734359447383,-241.02,0.00024999,3]
[345572307,1734359447392,-587.87181529,0.00024999,3]
[345572308,1734359447401,-500.0,0.00024999,3]
[345572309,1734359447410,-500.0,0.00024999,3]
[345572310,1734359447419,-500.0,0.00024999,3]
[345572311,1734359447428,-500.0,0.00024999,3]
[345572312,1734359447437,-500.0,0.00024999,3]
[345572313,1734359447602,-500.0,0.00024999,3]
[345572314,1734359447616,-500.0,0.00024999,3]
[345572315,1734359447626,-500.0,0.00024999,3]
[345572316,1734359447635,-500.0,0.00024999,3]
[345572317,1734359447644,-500.0,0.00024999,3]
[345572318,1734359447653,-500.0,0.00024999,3]
[345572319,1734359447662,-500.0,0.00024999,3]
[345572320,1734359447672,-500.0,0.00024999,3]
[345572321,1734359447681,-500.0,0.00024999,3]
[345572322,1734359447690,-197.44387099,0.00024999,3]
[345572323,1734359447699,-500.0,0.00024999,3]
[345572324,1734359447708,-500.0,0.00024999,3]
[345572325,1734359447717,-500.0,0.00024999,3]
[345572326,1734359447726,-500.0,0.00024999,3]
[345572327,1734359447736,-500.0,0.00024999,3]
[345572328,1734359447745,-500.0,0.00024999,3]
[345572329,1734359447755,-500.0,0.00024999,3]
[345572330,1734359447764,-500.0,0.00024999,3]
[345572331,1734359447774,-500.0,0.00024999,3]
[345572332,1734359447783,-500.0,0.00024999,3]
[345572333,1734359447792,-500.0,0.00024999,3]
[345572334,1734359447802,-500.0,0.00024999,3]
[345572335,1734359447811,-500.0,0.00024999,3]
[345572336,1734359447820,-500.0,0.00024999,3]
[345572337,1734359447830,-500.0,0.00024999,3]
[345572338,1734359447839,-183.84,0.00024999,3]
[345572339,1734359447848,-500.0,0.00024999,3]
[345572340,1734359447857,-500.0,0.00024999,3]
[345572341,1734359447867,-500.0,0.00024999,3]
[345572342,1734359447876,-500.0,0.00024999,3]
[345572343,1734359447890,-285.21,0.00024999,3]
[345572344,1734359447899,-502.19019785,0.00024999,3]
[345572345,1734359447908,-500.0,0.00024999,3]
[345572346,1734359447917,-500.0,0.00024999,3]
[345572347,1734359447926,-500.0,0.00024999,3]
[345572348,1734359447935,-247.962239,0.00024999,3]
[345572349,1734359447944,-500.0,0.00024999,3]
[345572350,1734359447953,-500.0,0.00024999,3]
[345572351,1734359447964,-500.0,0.00024999,3]
[345572352,1734359447974,-500.0,0.00024999,3]
[345572353,1734359447983,-500.0,0.00024999,3]
[345572354,1734359447992,-500.0,0.00024999,3]
[345572355,1734359448001,-569.37,0.00024999,3]
[345572356,1734359448010,-500.0,0.00024999,3]
[345572357,1734359448019,-414.945593,0.00024999,3]
[345572358,1734359448029,-500.0,0.00024999,3]
[345572359,1734359448038,-500.0,0.00024999,3]
[345572360,1734359448047,-500.0,0.00024999,3]
[345572361,1734359448056,-500.0,0.00024999,3]
[345572362,1734359448066,-500.0,0.00024999,3]
[345572363,1734359448075,-507.5,0.00024999,3]
[345572364,1734359448084,-500.0,0.00024999,3]
[345572365,1734359448093,-500.0,0.00024999,3]
[345572366,1734359448103,-500.0,0.00024999,3]
[345572367,1734359448112,-500.0,0.00024999,3]
[345572368,1734359448121,-500.0,0.00024999,3]
[345572369,1734359448130,-500.0,0.00024999,3]
[345572370,1734359448139,-500.0,0.00024999,3]
[345572371,1734359448149,-606.0,0.00024999,2]
[345572372,1734359448158,-681873.79445966,0.00025,4]
[345572373,1734359448167,-664.53410937,0.00025,2]
[345572374,1734359448176,-53278.32965611,0.00025,2]
[345572375,1734359448185,-201.03,0.00025,2]
[345572376,1734359448195,-6266694.38804545,0.00025,2]
[345572377,1734359448204,-1787.29749357,0.00025,5]
[345572378,1734359448213,-4603081.08116772,0.00025,2]
[345572379,1734359448223,-3130.15270527,0.00025,30]
[345572380,1734359448232,-65167.19829459,0.00025,120]
[345572381,1734359448241,-256.36739747,0.00025,120]
[345572382,1734359448251,-464524.58050244,0.00025,2]
[345572383,1734359448387,-1339854.60724435,0.00025,2]
[345572384,1734359448429,-500.0,0.00021917,3]
[345572385,1734359448438,-500.0,0.00022498,3]
[345572386,1734359448447,-503.6743002,0.00024999,3]
[345572387,1734359448456,-500.0,0.00024999,3]
[345572388,1734359448466,-500.0,0.00024999,3]
[345572389,1734359448475,-410.32,0.00024999,3]
[345572390,1734359448484,-210.0056998,0.00025,2]
[345572391,1734359448556,-500.0,0.00024998,3]
[345572392,1734359448566,-500.0,0.00024999,3]
[345572393,1734359448575,-500.0,0.00024999,3]
[345572394,1734359448585,-500.0,0.00024999,3]
[345572395,1734359448594,-500.0,0.00024999,3]
[345572396,1734359448604,-75567.5,0.00025,2]
[345572397,1734359448767,-9.7325891,0.00019601,2]
[345572398,1734359448875,-1051.7828289,0.00019601,2]
[345572399,1734359448886,-500.0,0.00021917,3]
[345572400,1734359448898,-402.2671711,0.00023778,3]
[345572401,1734359448917,-97.7328289,0.00023778,3]
[345572402,1734359448927,-158.31295253,0.00024257,2]
[345572403,1734359448939,-2.5667065,0.00024257,2]
[345572404,1734359448950,-500.0,0.00024998,3]
[345572405,1734359448959,-569.6,0.00024998,3]
[345572406,1734359448970,-500.0,0.00024999,3]
[345572407,1734359448980,-500.0,0.00024999,3]
[345572408,1734359448990,-221.63711322,0.00024999,3]
[345572410,1734359452473,156.61,0.00010137,2]
[345572411,1734359455107,1133.0,0.00015014,2]
[345572413,1734359580262,-1500.0,0.00029175,120]
[345572414,1734359580287,-100000.0,0.00029175,120]
[345572415,1734359580312,-463937.23721494,0.00029175,120]
[345572416,1734359580336,-10159.88498358,0.00029175,120]
[345572417,1734359580363,-172.4282247,0.00029175,120]
[345572418,1734359580388,-621.04128397,0.00029175,120]
[345572419,1734359580412,-1000.0,0.00029175,120]
[345572420,1734359580436,-234.02826555,0.00029175,60]
[345572421,1734359580462,-5000.0,0.00029175,120]
[345572422,1734359580486,-100000.0,0.00029175,120]
[345572423,1734359580511,-288.5866863,0.00029175,120]
[345572424,1734359580535,-290.03389533,0.00029175,120]
[345572425,1734359580559,-428.75447356,0.00029175,120]
[345572426,1734359580582,-673.54145547,0.00029175,120]
[345572427,1734359580610,-736.38710985,0.00029175,120]
[345572428,1734359580635,-10000.0,0.00029175,120]
[345572429,1734359580660,-700.0,0.00029175,120]
[345572430,1734359580684,-319.999999,0.00029175,120]
[345572431,1734359580713,-10000.0,0.00029175,120]
[345572432,1734359580738,-8822.69727414,0.00029175,120]
[345572433,1734359580764,-729.35271474,0.00029175,120]
[345572434,1734359580789,-27506.59823585,0.00029175,120]
[345572435,1734359580813,-804.4492731,0.00029175,120]
[345572436,1734359580839,-1675.0181073,0.00029175,120]
[345572437,1734359580866,-20000.0,0.00029175,120]
[345572438,1734359580891,-428.13414614,0.00029175,120]
[345572439,1734359581084,-30000.0,0.00029175,43]
[345572440,1734359581112,-3700.80748938,0.00029175,120]
[345572441,1734359581139,-174.03155431,0.00029175,120]
[345572442,1734359581165,-44234.71810865,0.00029175,60]
[345572443,1734359581190,-745.97,0.00029175,60]
[345572444,1734359581215,-1000.0,0.00029175,50]
[345572445,1734359581243,-9564.7388679,0.00029175,60]
[345572446,1734359581270,-2003.00795555,0.00029175,120]
[345572447,1734359581297,-319.0,0.00029175,120]
[345572448,1734359581324,-158.900456,0.00029175,40]
[345572449,1734359581356,-158.900456,0.00029175,40]
[345572450,1734359585780,1428.97275724,0.000151,7]
[345572451,1734359927160,800.0,0.00021,120]
[345572455,1734360275816,450.0,0.00013,2]
[345572456,1734360276893,500.0,0.00015,2]
[345572459,1734360434112,-1056.0,0.00018943,2]
[345572460,1734360434134,-472.25007277,0.00019017,2]
[345572461,1734360434160,-222.06467235,0.00019117,2]
[345572462,1734360437081,-2953.33117815,0.00019117,2]
[345572463,1734360437106,-300.0,0.00019599,2]
[345572464,1734360437126,-5552.7291,0.000196,2]
[345572465,1734360437146,-19090.11372704,0.0001962,2]
[345572466,1734360445099,-25359.88627296,0.0001962,2]
[345572467,1734360445119,-554.13251698,0.00019799,2]
[345572468,1734360445139,-1056.0,0.0001994,2]
[345572469,1734360445161,-150.0,0.00019999,2]
[345572470,1734360445183,-32648.86458324,0.0002,4]
[345572471,1734360449147,-67351.13541676,0.0002,4]
[345572472,1734360449168,-150.0,0.00020137,2]
[345572473,1734360449189,-159.86267472,0.00020173,2]
[345572474,1734360449211,-151.32,0.0002021,2]
[345572475,1734360449235,-209.23556769,0.0002021,2]
[345572476,1734360449255,-159.807744,0.00020273,2]
[345572477,1734360449279,-200.0,0.00020312,2]
[345572478,1734360449301,-1197.25346923,0.0002058,2]
[345572479,1734360449323,-784.33,0.00020696,2]
[345572480,1734360449347,-1056.0,0.00020989,2]
[345572481,1734360449370,-500.0,0.00021164,2]
[345572482,1734360449393,-747.34,0.00021221,2]
[345572483,1734360449415,-762.6,0.00021258,2]
[345572484,1734360449438,-744.5,0.00021321,2]
[345572485,1734360449461,-420.0,0.0002135,2]
[345572486,1734360449483,-757.17,0.00021424,2]
[345572487,1734360449507,-741.11,0.000216,2]
[345572488,1734360449530,-156.61,0.00021669,2]
[345572489,1734360449554,-150.0,0.00021699,2]
[345572490,1734360449578,-1459.79,0.00021865,2]
[345572491,1734360449610,-739.02,0.0002188,2]
[345572492,1734360449633,-2000.0,0.00021899,2]
[345572493,1734360449655,-500.0,0.00021917,3]
[345572494,1734360449679,-500.0,0.00021917,3]
[345572495,1734360449702,-645.03,0.00021917,3]
[345572496,1734360449725,-513.1950472,0.00021917,3]
[345572497,1734360449750,-500.0,0.00021917,3]
[345572498,1734360449776,-538.64,0.00021917,3]
[345572499,1734360449800,-500.0,0.00021917,3]
[345572500,1734360449824,-2500.0,0.00021917,120]
[345572501,1734360449854,-500.0,0.00021917,3]
[345572502,1734360449878,-173.36,0.00021917,3]
[345572503,1734360449903,-538.24,0.00021917,3]
[345572504,1734360449926,-643.18,0.00021917,3]
[345572505,1734360449950,-500.0,0.00021917,3]
[345572506,1734360449972,-587.87181529,0.00021917,3]
[345572507,1734360449995,-500.0,0.00021917,3]
[345572508,1734360450018,-500.0,0.00021917,3]
[345572509,1734360450040,-500.0,0.00021917,3]
[345572510,1734360450062,-537.03,0.00021917,3]
[345572511,1734360450085,-500.0,0.00021917,3]
[345572512,1734360450112,-500.0,0.00021917,3]
[345572513,1734360450134,-239.20144513,0.00021917,3]
[345572514,1734360450158,-500.0,0.00021917,3]
[345572515,1734360450181,-500.0,0.00021917,3]
[345572516,1734360450202,-500.0,0.00021917,3]
[345572517,1734360450228,-500.0,0.00021917,3]
[345572518,1734360450250,-501.57597826,0.00021917,3]
[345572519,1734360450269,-501.42102494,0.00021917,3]
[345572520,1734360450291,-500.0,0.00021917,3]
[345572521,1734360450312,-542.34,0.00021917,3]
[345572522,1734360450332,-500.0,0.00021917,3]
[345572523,1734360450356,-503.74180556,0.00021917,3]
[345572524,1734360450377,-500.0,0.00021917,3]
[345572525,1734360450398,-469.72,0.00021917,3]
[345572526,1734360450418,-500.0,0.00021917,3]
[345572527,1734360450438,-500.0,0.00021917,3]
[345572528,1734360450459,-500.0,0.00021917,3]
[345572529,1734360450479,-500.0,0.00021917,3]
[345572530,1734360450499,-500.0,0.00021917,3]
[345572531,1734360450520,-500.0,0.00021917,3]
[345572532,1734360450540,-500.0,0.00021917,3]
[345572533,1734360450560,-500.0,0.00021917,3]
[345572534,1734360450581,-500.0,0.00021917,3]
[345572535,1734360450612,-500.0,0.00021917,3]
[345572536,1734360450632,-500.0,0.00021917,3]
[345572537,1734360450652,-500.0,0.00021917,3]
[345572538,1734360450673,-500.0,0.00021917,3]
[345572539,1734360450693,-500.0,0.00021917,3]
[345572540,1734360450716,-500.0,0.00021917,3]
[345572541,1734360450737,-502.9579998,0.00021917,3]
[345572542,1734360450757,-500.0,0.00021917,3]
[345572543,1734360450779,-500.0,0.00021917,3]
[345572544,1734360450801,-500.0,0.00021917,3]
[345572545,1734360450822,-500.0,0.00021917,3]
[345572546,1734360450846,-500.0,0.00021917,3]
[345572547,1734360450866,-500.0,0.00021917,3]
[345572548,1734360450887,-641.37,0.00021917,3]
[345572549,1734360450908,-500.0,0.00021917,3]
[345572550,1734360450929,-500.0,0.00021917,3]
[345572551,1734360450949,-500.0,0.00021917,3]
[345572552,1734360450970,-500.0,0.00021917,3]
[345572553,1734360450992,-500.0,0.00021917,3]
[345572554,1734360451165,-500.0,0.00021917,3]
[345572555,1734360451186,-500.0,0.00021917,3]
[345572556,1734360451207,-500.0,0.00021917,3]
[345572557,1734360451230,-500.0,0.00021917,3]
[345572558,1734360451251,-500.0,0.00021917,3]
[345572559,1734360451272,-500.0,0.00021917,3]
[345572560,1734360451292,-500.0,0.00021917,3]
[345572561,1734360451314,-500.0,0.00021917,3]
[345572562,1734360451335,-500.0,0.00021917,3]
[345572563,1734360451360,-177.2,0.00021917,3]
[345572564,1734360451380,-500.0,0.00021917,3]
[345572565,1734360451402,-500.0,0.00021917,3]
[345572566,1734360451422,-500.0,0.00021917,3]
[345572567,1734360451442,-634.70822016,0.00021917,3]
[345572568,1734360451462,-385.63058189,0.00021917,3]
[345572569,1734360451482,-500.0,0.00021917,3]
[345572570,1734360451502,-533.8,0.00021917,3]
[345572571,1734360451522,-500.0,0.00021917,3]
[345572572,1734360451543,-500.0,0.00021917,3]
[345572573,1734360451564,-500.0,0.00021917,3]
[345572574,1734360451585,-371.7,0.00021917,3]
[345572575,1734360451608,-500.0,0.00021917,3]
[345572576,1734360451628,-500.0,0.00021917,3]
[345572577,1734360451649,-500.0,0.00021917,3]
[345572578,1734360451669,-500.0,0.00021917,3]
[345572579,1734360451689,-500.0,0.00021917,3]
[345572580,1734360451709,-598.33,0.00021917,3]
[345572581,1734360451730,-500.0,0.00021917,3]
[345572582,1734360451753,-500.0,0.00021917,3]
[345572583,1734360451774,-500.0,0.00021917,3]
[345572584,1734360451794,-500.0,0.00021917,3]
[345572585,1734360451814,-168.40751122,0.00021917,3]
[345572586,1734360451835,-500.0,0.00021917,3]
[345572587,1734360451859,-1100.77,0.00021917,3]
[345572588,1734360451882,-1100.77,0.00021917,3]
[345572589,1734360451904,-1100.77,0.00021917,3]
[345572590,1734360451926,-500.0,0.00021917,3]
[345572591,1734360451948,-500.0,0.00021917,3]
[345572592,1734360451971,-500.0,0.00021917,3]
[345572593,1734360451992,-500.0,0.00021917,3]
[345572594,1734360452014,-500.0,0.00021917,3]
[345572595,1734360452037,-500.0,0.00021917,3]
[345572596,1734360452059,-500.0,0.00021917,3]
[345572597,1734360452081,-500.0,0.00021917,3]
[345572598,1734360452105,-2039.56,0.00022088,2]
[345572599,1734360452126,-1056.0,0.00022094,2]
[345572600,1734360452147,-1000.0,0.00022123,2]
[345572601,1734360452168,-250.0,0.00022123,2]
[345572602,1734360452188,-200.0,0.00022156,2]
[345572603,1734360452209,-2000.0,0.00022288,2]
[345572604,1734360452232,-23900.0,0.00022296,2]
[345572605,1734360452255,-554.13251697,0.0002235,2]
[345572606,1734360452276,-1014.97,0.000224,2]
[345572607,1734360452298,-150.0,0.00022488,4]
[345572608,1734360452321,-150.00000001,0.00022488,4]
[345572609,1734360452342,-272.20413029,0.00022488,4]
[345572610,1734360452368,-150.00000001,0.00022488,4]
[345572611,1734360452389,-451.86957292,0.00022498,3]
[345572612,1734360452411,-586.87,0.00022498,3]
[345572613,1734360452432,-2500.0,0.00022498,120]
[345572614,1734360452455,-500.0,0.00022498,3]
[345572615,1734360452475,-500.0,0.00022498,3]
[345572616,1734360452495,-414.945593,0.00022498,3]
[345572617,1734360452517,-376.44353826,0.00022498,3]
[345572618,1734360452538,-500.0,0.00022498,3]
[345572619,1734360452559,-500.0,0.00022498,3]
[345572620,1734360452581,-503.76368822,0.00022498,3]
[345572621,1734360452605,-500.0,0.00022498,3]
[345572622,1734360452625,-500.0,0.00022498,3]
[345572623,1734360452646,-500.0,0.00022498,3]
[345572624,1734360452667,-500.0,0.00022498,3]
[345572625,1734360452689,-500.0,0.00022498,3]
[345572626,1734360452709,-500.0,0.00022498,3]
[345572627,1734360452729,-578.3,0.00022498,3]
[345572628,1734360452751,-500.0,0.00022498,3]
[345572629,1734360452771,-493.81985112,0.00022498,3]
[345572630,1734360452792,-500.0,0.00022498,3]
[345572631,1734360452813,-500.0,0.00022498,3]
[345572632,1734360452834,-500.0,0.00022498,3]
[345572633,1734360452857,-500.0,0.00022498,3]
[345572634,1734360452878,-500.0,0.00022498,3]
[345572635,1734360452899,-500.0,0.00022498,3]
[345572636,1734360452919,-1238.0675,0.00022499,2]
[345572637,1734360452940,-194.92,0.00022614,2]
[345572638,1734360452960,-1000.0,0.00022614,2]
[345572639,1734360452980,-175.12,0.00022668,2]
[345572640,1734360453001,-162.6,0.00022792,2]
[345572641,1734360453022,-250.0,0.00022806,2]
[345572642,1734360453045,-500.0,0.00022945,3]
[345572643,1734360453069,-500.0,0.00022945,3]
[345572644,1734360453093,-500.0,0.00022945,3]
[345572645,1734360453119,-1100.77,0.00022945,3]
[345572646,1734360453145,-500.0,0.00022945,3]
[345572647,1734360453166,-500.0,0.00022945,3]
[345572648,1734360453186,-2167.46,0.00022946,2]
[345572649,1734360453208,-784.33,0.0002296,2]
[345572650,1734360453234,-165.68,0.00023072,2]
[345572651,1734360453256,-2000.0,0.00023113,2]
[345572652,1734360453276,-250.0,0.00023114,2]
[345572653,1734360453297,-938.65,0.00023117,2]
[345572654,1734360453318,-9842.03,0.00023185,2]
[345572655,1734360453340,-1056.0,0.00023199,2]
[345572656,1734360453363,-1500.0,0.00023249,2]
[345572657,1734360453385,-1145.0,0.00023255,2]
[345572658,1734360453407,-587.0,0.00023257,2]
[345572659,1734360453427,-500.0,0.00023341,2]
[345572660,1734360453448,-500.0,0.00023356,2]
[345572661,1734360453468,-1852.42,0.00023365,2]
[345572662,1734360453488,-200.0,0.00023392,2]
[345572663,1734360453510,-744.7,0.0002341,2]
[345572664,1734360453531,-194.92,0.00023451,2]
[345572665,1734360453553,-1145.0,0.00023494,2]
[345572666,1734360453576,-192.89,0.00023529,2]
[345572667,1734360453599,-1145.0,0.00023734,2]
[345572668,1734360453627,-563.59,0.0002375,2]
[345572669,1734360453648,-2712.0,0.000238,2]
[345572670,1734360453670,-150.0,0.00023898,2]
[345572671,1734360453691,-162.33148156,0.00023904,5]
[345572672,1734360453714,-1970.792,0.00023904,5]
[345572673,1734360453735,-2000.0,0.00023938,2]
[345572674,1734360453757,-1145.0,0.00023974,2]
[345572675,1734360453778,-529.66340829,0.00023974,2]
[345572676,1734360453799,-500.0,0.00024055,2]
[345572677,1734360453823,-1145.0,0.00024214,2]
[345572678,1734360453845,-194.92,0.00024287,2]
[345572679,1734360453872,-1056.0,0.00024359,2]
[345572680,1734360453894,-211.04774104,0.00024399,2]
[345572681,1734360453915,-1145.0,0.00024453,2]
[345572682,1734360453936,-741.607258,0.00024454,120]
[345572683,1734360453957,-1096.96004471,0.00024499,2]
[345572684,1734360453978,-230.0,0.000245,2]
[345572685,1734360453999,-1000.0,0.00024658,2]
[345572686,1734360454022,-1145.0,0.00024693,2]
[345572687,1734360454044,-2000.0,0.00024762,2]
[345572688,1734360454067,-159.02907108,0.000248,2]
[345572689,1734360454092,-4825.00388797,0.00024826,10]
[345572690,1734360454122,-4825.00388797,0.00024847,10]
[345572691,1734360454146,-4825.00388797,0.00024848,10]
[345572692,1734360454167,-469.62688846,0.00024879,2]
[345572693,1734360454188,-504.04591042,0.00024879,2]
[345572694,1734360454210,-286.28617237,0.00024879,2]
[345572695,1734360454234,-500.0,0.00024879,2]
[345572696,1734360454257,-500.0,0.00024879,2]
[345572697,1734360454278,-303.44596879,0.00024879,2]
[345572698,1734360454300,-500.0,0.00024879,2]
[345572699,1734360454322,-500.0,0.00024879,2]
[345572700,1734360454344,-500.0,0.00024879,2]
[345572701,1734360454365,-407.48940633,0.00024879,2]
[345572702,1734360454389,-500.0,0.00024879,2]
[345572703,1734360454412,-442.84359645,0.00024879,2]
[345572704,1734360454433,-500.0,0.00024879,2]
[345572705,1734360454455,-500.0,0.00024879,2]
[345572706,1734360454478,-500.0,0.00024879,2]
[345572707,1734360454500,-5100.0,0.0002488,28]
[345572708,1734360454530,-5100.0,0.0002488,29]
[345572709,1734360454554,-4825.00388797,0.00024885,10]
[345572710,1734360454580,-4825.00388797,0.00024885,10]
[345572711,1734360454610,-4825.00388797,0.00024887,10]
[345572712,1734360454632,-1000.0,0.00024889,2]
[345572713,1734360454653,-500.0,0.00024899,3]
[345572714,1734360454673,-500.0,0.00024899,3]
[345572715,1734360454695,-500.0,0.00024899,3]
[345572716,1734360454716,-531.32100287,0.00024899,3]
[345572717,1734360454738,-500.0,0.00024899,3]
[345572718,1734360454760,-582.92,0.00024899,3]
[345572719,1734360454902,-500.0,0.00024899,3]
[345572720,1734360454929,-500.0,0.00024899,3]
[345572721,1734360454952,-500.0,0.00024899,3]
[345572722,1734360454974,-500.0,0.00024899,3]
[345572723,1734360454996,-500.0,0.00024899,3]
[345572724,1734360455018,-581.19164857,0.00024899,3]
[345572725,1734360455039,-500.0,0.00024899,3]
[345572726,1734360455059,-661.97,0.00024899,3]
[345572727,1734360455082,-372.9,0.00024899,3]
[345572728,1734360455106,-334.86,0.00024899,3]
[345572729,1734360455127,-500.0,0.00024899,3]
[345572730,1734360455148,-500.0,0.00024899,3]
[345572731,1734360455170,-500.0,0.00024899,3]
[345572732,1734360455191,-500.0,0.00024899,3]
[345572733,1734360455214,-500.0,0.00024899,3]
[345572734,1734360455237,-500.0,0.00024899,3]
[345572735,1734360455258,-500.0,0.00024899,3]
[345572736,1734360455278,-500.0,0.00024899,3]
[345572737,1734360455301,-500.0,0.00024899,3]
[345572738,1734360455322,-500.0,0.00024899,3]
[345572739,1734360455344,-500.0,0.00024899,3]
[345572740,1734360455367,-500.0,0.00024899,3]
[345572741,1734360455389,-500.0,0.00024899,3]
[345572742,1734360455410,-302.73,0.00024899,3]
[345572743,1734360455432,-500.0,0.00024899,3]
[345572744,1734360455455,-500.0,0.00024899,3]
[345572745,1734360455476,-654.75,0.00024899,3]
[345572746,1734360455498,-500.0,0.00024899,3]
[345572747,1734360455521,-569.37,0.00024899,3]
[345572748,1734360455543,-500.0,0.00024899,3]
[345572749,1734360455566,-500.0,0.00024899,3]
[345572750,1734360455586,-5269.5272,0.000249,2]
[345572751,1734360455611,-2000.0,0.000249,2]
[345572752,1734360455632,-173.37332511,0.000249,2]
[345572753,1734360455658,-363.52,0.000249,31]
[345572754,1734360455684,-363.52,0.000249,31]
[345572755,1734360455711,-363.52,0.000249,31]
[345572756,1734360455737,-363.52,0.000249,31]
[345572757,1734360455765,-363.52,0.000249,31]
[345572758,1734360455792,-363.52,0.000249,31]
[345572759,1734360455819,-363.52,0.000249,31]
[345572760,1734360455845,-363.52,0.000249,31]
[345572761,1734360455874,-363.52,0.000249,31]
[345572762,1734360455901,-363.52,0.000249,31]
[345572763,1734360455927,-363.52,0.000249,31]
[345572764,1734360455954,-363.52,0.000249,31]
[345572765,1734360455980,-363.52,0.000249,31]
[345572766,1734360456006,-363.52,0.000249,31]
[345572767,1734360456032,-363.52,0.000249,31]
[345572768,1734360456057,-363.52,0.000249,31]
[345572769,1734360456077,-5170.16,0.000249,14]
[345572770,1734360456101,-554.13251697,0.000249,2]
[345572771,1734360456121,-2051.8,0.000249,2]
[345572772,1734360456141,-265.10294251,0.000249,2]
[345572773,1734360456162,-352.0507087,0.000249,2]
[345572774,1734360456182,-51945.66392008,0.000249,2]
[345572775,1734360456362,-779.57140716,0.000249,2]
[345572785,1734360632288,-1000.0,0.00021,7]
[345572786,1734360632297,-746.41,0.00021,2]
[345572787,1734360632306,-742.6,0.000211,2]
[345572788,1734360632315,-749.23,0.000211,2]
[345572789,1734360632324,-500.0,0.00021164,2]
[345572790,1734360632333,-738.61,0.00021325,2]
[345572791,1734360632343,-743.01,0.00021433,2]
[345572792,1734360632353,-737.59,0.00021615,2]
[345572793,1734360632362,-150.197,0.00021699,2]
[345572794,1734360632372,-300.0,0.00021916,2]
[345572795,1734360632382,-747.53,0.00021917,2]
[345572796,1734360632391,-753.94,0.00021917,2]
[345572797,1734360632399,-500.0,0.00021917,3]
[345572798,1734360632408,-500.0,0.00021917,3]
[345572799,1734360632417,-500.0,0.00021917,3]
[345572800,1734360632426,-206.37,0.00021917,3]
[345572801,1734360632436,-500.0,0.00021917,3]